Cogmind - Beta 16.1 @@@ ROGUE MODE // 2026.04.29 @ 17:46:10 Player: souux Result: Destroyed by Striker with Plasma Lance Performance ------------- Evolutions (8) 4000 Regions Visited (27) 5400 Robots Destroyed (148) 740 Value Destroyed (5265) 5265 Prototype IDs (101) 2020 Alien Tech Used (2) 400 Bonus (2622) 2622 TOTAL SCORE: 20447 Bonus ------- High Alert Combat Kills 230 Follower Combat Kills 97 Aligned with FarCom 300 Met Data Miner 300 Met Imprinter 300 Met Zhirov 300 Met Warlord at Base 500 MAIN.C Attacked Warlord 500 Warlord Defense Kills 240 Friendly Fire -145 Cogmind --------- Core Integrity 0/1450 Matter 211/300 Energy 279/280 System Corruption 14% Temperature Cool (0) Movement Hovering (134) Ox1 Location -2/Research Parts ------- > --- POWER (2) -------- Light Quantum Reactor Light Quantum Reactor > --- PROPULSION (8) --- Cooled Gravmag System Combat Linear Gravjet Combat Linear Gravjet Combat Linear Gravjet > --- UTILITY (10) ----- Advanced Heat Sink Advanced Heat Sink Advanced Heat Sink Medium Storage Unit Advanced Target Analyzer Centrium Light Armor Plating Centrium Light Armor Plating Centrium Light Armor Plating Advanced Corruption Screen > --- WEAPON (3) ------- Enhanced Nova Cannon > --- INVENTORY (10) --- Biometal Heavy Treads Combat Linear Gravjet Cooled Nuclear Pulse Thruster Field Propulsion Array High-capacity Matter Pod (200) Core Analyzer Graphene Brace Point Singularity Launcher Peak State ------------ > --- POWER ------------ Quantum Reactor Light Quantum Reactor > --- PROPULSION ------- Biometal Heavy Treads Biometal Heavy Treads Advanced Heavy Siege Treads Advanced Heavy Siege Treads > --- UTILITY ---------- Advanced Cooling System Medium Storage Unit Experimental Optical Array Advanced Targeting Computer Core Analyzer Advanced Weapon Cycler Advanced Transmission Jammer Improved Heavy Armor Plating Experimental Focal Shield > --- WEAPON ----------- Enhanced Nova Cannon Enhanced Nova Cannon Enhanced Nova Cannon > --- INVENTORY -------- Biometal Heavy Treads Advanced Heavy Siege Treads High-capacity Matter Pod Medium Reflective Plating Graphene Brace Advanced Point Defense System Gamma Bomb Array Enhanced Force Lance [Rating: 180] Favorites ----------- Power Light Fission Core Engine Light Deuterium Engine Power Core Light Fission Core Reactor Light Quantum Reactor Propulsion Improved VTOL Module Treads Light Treads Wheel Wheel Hover Unit Combat Linear Gravjet Flight Unit Improved VTOL Module Utility Medium Storage Unit Device Structural Scanner Storage Medium Storage Unit Processor Advanced Visual Processing Unit Hackware Hacking Suite Protection Hardened Light Armor Plating Weapon Chainsword Energy Gun Heavy Particle Gun Energy Cannon Enhanced Nova Cannon Ballistic Gun Assault Rifle Launcher Rocket Launcher Slashing Weapon Chainsword Build | -11 -10 -10 -10 -9 -8 -7 -7 -7 -7 -6 -6 -6 -6 -6 -5 -5 -5 -5 -5 -4 -4 -4 -4 -4 -3 -3 -2 ------- Run | Yrd Mat Min Exi Min Mat Fac Low Low Dat Pro Fac Low Low Zio Pro Fac Upp Upp Zhi Pro Fac Upp Upp War Pro Res Res Slots Evolved 16 | . . . . . 4 2 . . . . 2 . . . . 2 . . . . 2 . . . . 2 2 Power 1 | . . . . . . . . . . . . . . . . 1 . . . . . . . . . . . Propulsion 6 | . . . . . 1 2 . . . . 1 . . . . 1 . . . . 1 . . . . . . Utility 8 | . . . . . 3 . . . . . 1 . . . . . . . . . 1 . . . . 2 1 Weapon 1 | . . . . . . . . . . . . . . . . . . . . . . . . . . . 1 Parts Attached 188 | 7 10 . 1 . 46 14 . 2 . . 2 . 1 6 . 11 . 1 6 1 6 1 1 14 1 7 50 Power 30 | 1 2 . 1 . 6 2 . . . . . . . . . 5 . . 2 . . 1 . 6 . . 4 Engine 12 | 1 2 . 1 . 4 2 . . . . . . . . . 2 . . . . . . . . . . . Core 9 | . . . . . 2 . . . . . . . . . . 2 . . 2 . . 1 . 2 . . . Reactor 9 | . . . . . . . . . . . . . . . . 1 . . . . . . . 4 . . 4 Propulsion 52 | 2 3 . . . 15 5 . 2 . . 1 . . . . 2 . . . . 2 . . 2 . 2 16 Treads 21 | 1 2 . . . 12 . . . . . . . . . . . . . . . . . . . . . 6 Leg . | . . . . . . . . . . . . . . . . . . . . . . . . . . . . Wheel 3 | 1 1 . . . 1 . . . . . . . . . . . . . . . . . . . . . . Hover 4 | . . . . . . . . . . . . . . . . . . . . . . . . . . . 4 Flight 24 | . . . . . 2 5 . 2 . . 1 . . . . 2 . . . . 2 . . 2 . 2 6 Utility 75 | 2 2 . . . 15 5 . . . . 1 . 1 5 . 3 . . 4 1 3 . 1 6 1 5 20 Device 41 | 1 1 . . . 9 2 . . . . 1 . . 4 . 1 . . 2 . 2 . 1 3 1 3 10 Storage 6 | 1 1 . . . 2 . . . . . . . . . . . . . 1 1 . . . . . . . Processor 10 | . . . . . . 1 . . . . . . . 1 . 1 . . . . . . . 2 . . 5 Hackware 6 | . . . . . . 2 . . . . . . . . . 1 . . . . . . . 1 . 2 . Protection 12 | . . . . . 4 . . . . . . . 1 . . . . . 1 . 1 . . . . . 5 Artifact . | . . . . . . . . . . . . . . . . . . . . . . . . . . . . Weapon 31 | 2 3 . . . 10 2 . . . . . . . 1 . 1 . 1 . . 1 . . . . . 10 Energy Gun 6 | 1 1 . . . 3 . . . . . . . . . . . . . . . . . . . . . 1 Energy Cannon 9 | . . . . . 2 . . . . . . . . . . 1 . 1 . . 1 . . . . . 4 Ballistic Gun 9 | 1 1 . . . 4 . . . . . . . . 1 . . . . . . . . . . . . 2 Ballistic Cannon . | . . . . . . . . . . . . . . . . . . . . . . . . . . . . Launcher 5 | . 1 . . . 1 1 . . . . . . . . . . . . . . . . . . . . 2 Special Weapon . | . . . . . . . . . . . . . . . . . . . . . . . . . . . . Impact Weapon . | . . . . . . . . . . . . . . . . . . . . . . . . . . . . Slashing Weapon 2 | . . . . . . 1 . . . . . . . . . . . . . . . . . . . . 1 Piercing Weapon . | . . . . . . . . . . . . . . . . . . . . . . . . . . . . Special Melee Weapon . | . . . . . . . . . . . . . . . . . . . . . . . . . . . . Unidentified Prototypes 34 | . . . . . 6 2 . . . 1 . . . 3 . 3 . . 4 . 1 . . 6 . 1 7 Parts Lost 22 | . 1 . . . 5 . . . . . . . 2 . . . . . . . . . . 1 1 1 11 Power 6 | . . . . . . . . . . . . . . . . . . . . . . . . 1 1 . 4 Propulsion 1 | . 1 . . . . . . . . . . . . . . . . . . . . . . . . . . Utility 8 | . . . . . 2 . . . . . . . 1 . . . . . . . . . . . . 1 4 Weapon 7 | . . . . . 3 . . . . . . . 1 . . . . . . . . . . . . . 3 Highest Loss Streak 6 | . 1 . . . 1 . . . . . . . 2 . . . . . . . . . . 1 1 1 6 To Critical Strikes 1 | . . . . . . . . . . . . . . . . . . . . . . . . . . . 1 Average Backups 11 | 5 8 10 10 10 18 10 10 9 10 9 9 10 9 10 10 9 10 10 9 9 9 9 9 9 10 8 7 Power 1 | . . 1 . . 1 1 1 1 1 1 1 2 2 2 2 1 2 2 1 . . 1 1 . . . . Propulsion 4 | 3 3 4 3 3 8 5 5 4 4 3 2 2 2 2 2 1 1 1 1 1 . 2 2 1 2 1 1 Utility 4 | . 2 3 3 5 5 3 4 4 5 4 4 5 4 5 4 4 4 5 6 6 6 6 6 7 7 5 3 Weapon 1 | . 2 2 2 2 3 . . . . . 1 1 1 1 1 1 2 2 1 2 . . . . . 1 2 Tool/Special . | . . . . . . . . . . . . . . . . . . . . . . . . . . . . Unused Backups 50 | 1 4 . 1 . 10 4 . 1 . 1 . . . 3 . 5 . 1 . . 5 . . 1 . 3 10 Power 5 | . . . . . . . . 1 . . . . . . . 1 . . . . . . . 1 . 1 1 Propulsion 13 | 1 3 . 1 . 1 2 . . . . . . . . . . . . . . 1 . . . . . 4 Utility 21 | . . . . . 5 2 . . . 1 . . . 2 . 4 . . . . 3 . . . . 1 3 Weapon 11 | . 1 . . . 4 . . . . . . . . 1 . . . 1 . . 1 . . . . 1 2 Tool/Special . | . . . . . . . . . . . . . . . . . . . . . . . . . . . . Average Slot Usage (%) 94 | . 99 100 100 100 99 99 100 100 100 100 99 100 97 99 93 96 94 91 81 88 93 94 94 93 87 84 75 Engine 5 | . 14 14 14 14 6 7 7 7 7 7 6 6 6 6 6 . . . . . . . . . . . . Core 2 | . . . . . 2 . . . . . . . . . . 10 11 11 11 11 10 10 10 9 3 . . Reactor 1 | . . . . . . . . . . . . . . . . . . . . . . . . . 5 9 7 Treads 12 | . 18 28 28 28 26 . . . . . . . . . . . . . . . . . . . . . 12 Flight 16 | . . . . . . 37 38 38 38 38 40 40 40 40 40 37 35 35 35 35 36 36 36 35 31 28 4 Device 17 | . 14 14 14 14 24 10 15 15 15 15 19 20 16 15 19 11 5 5 3 11 14 15 15 15 15 18 17 Storage 7 | . 14 14 14 14 9 7 7 7 7 7 6 6 6 6 6 5 5 5 5 5 5 5 5 5 5 4 3 Processor 4 | . . . . . . 6 7 7 7 7 6 6 6 7 6 5 11 11 11 5 5 5 5 5 5 4 10 Hackware 4 | . . . . . . 11 7 7 7 7 6 6 6 6 6 10 11 11 11 11 10 10 10 10 10 11 1 Protection 3 | . . . . . 10 . . . . . . . 2 2 . . . . . . . . . . . 2 4 Energy Gun 4 | . 14 14 14 14 6 . . . . . . . . . . . . . . . . . . . . . . Energy Cannon 2 | . . . . . 1 . . . . . . . . . . . 2 5 . 1 5 5 5 5 4 2 8 Ballistic Gun 5 | . 13 14 14 14 9 . . . . . . . . 5 1 4 2 . . . . . . . . . . Launcher 1 | . . . . . . 6 7 7 7 7 6 6 3 . . . . . . . . . . . . . . Slashing Weapon 2 | . . . . . . 6 7 7 7 7 6 6 6 6 6 5 5 2 . 3 4 5 5 5 5 1 . Peak Build Rating 180 | 7 9 9 10 10 32 47 45 45 45 45 54 54 56 66 68 76 76 76 73 75 88 88 90 108 110 134 180 Average Rating 61 | 5 8 9 9 10 26 44 45 44 45 44 53 54 54 61 56 72 75 72 65 69 85 88 88 95 105 124 156 On Entrance 55 | . 7 9 9 10 10 30 45 45 45 45 45 54 54 55 63 56 76 74 72 71 71 88 88 90 107 104 128 Avg Prop Armor Cover (%) 11 | 13 12 . . . . . . . . . . . . . . . . . . . . . . . . . 1 Naked Turns 6 | . . . . . . . . . . . . . . . . . . . . . . . . . . . 6 Heaviest Build 105 | 15 21 21 21 21 69 25 24 24 24 24 25 25 28 31 26 38 37 37 36 36 42 41 41 62 49 60 105 Greatest Support 315 | 10 40 40 40 40 60 25 25 25 25 25 30 30 30 30 30 38 38 38 38 38 44 44 47 52 55 63 315 Greatest Overweight (x) 20 | 1 6 . . . 3 . . . . . . . . 1 . 1 . . . . . . . 20 . . 5 Average Overweight (x) . | . . . . . . . . . . . . . . . . . . . . . . . . . . . . Largest Inventory Capacity 20 | 8 10 10 10 10 20 20 10 10 10 10 10 10 10 10 10 10 10 10 10 10 10 10 10 10 10 10 10 Average Capacity 12 | 7 9 10 10 10 19 10 10 10 10 10 10 10 10 10 10 10 10 10 10 10 10 10 10 10 10 10 9 Most Carried 20 | 8 10 10 10 10 20 19 10 10 10 10 10 10 10 10 10 10 10 10 10 10 10 10 10 10 10 10 10 Average Carried 12 | 5 8 9 9 10 18 10 10 9 10 9 9 10 9 9 9 9 9 10 9 9 9 10 10 9 9 9 9 Final Capacity 20 | 8 10 10 10 10 20 10 10 10 10 10 10 10 10 10 10 10 10 10 10 10 10 10 10 10 10 10 10 Final Carried 20 | 8 10 10 10 10 20 10 10 10 10 10 10 10 10 10 10 10 10 10 9 9 10 10 10 10 10 10 10 Class Distribution -------------------- 33% | Scavenger-Mutant 25% | Hacker-Sprinter 10% | Mutant 10% | Infiltrator-Sprinter 7% | Tank 3% | Hacker-Scout Dominant Class ---------------- Mutant | -10/Materials Scavenger-Mutant | -10/Mines Scavenger-Mutant | -10/Exiles Scavenger-Mutant | -9/Mines Scavenger-Mutant | -8/Materials Hacker-Scout | -7/Factory Infiltrator-Sprinter | -7/Lower Caves Infiltrator-Sprinter | -7/Lower Caves Infiltrator-Sprinter | -7/Data Miner Infiltrator-Sprinter | -6/Proximity Caves Infiltrator-Ninja | -6/Factory Infiltrator-Sprinter | -6/Lower Caves Infiltrator-Sprinter | -6/Lower Caves Infiltrator-Sprinter | -6/Zion Infiltrator-Sprinter | -5/Proximity Caves Hacker-Sprinter | -5/Factory Hacker-Sprinter | -5/Upper Caves Hacker-Sprinter | -5/Upper Caves Hacker-Sprinter | -5/Zhirov Hacker-Sprinter | -4/Proximity Caves Hacker-Sprinter | -4/Factory Hacker-Sprinter | -4/Upper Caves Hacker-Sprinter | -4/Upper Caves Hacker-Sprinter | -4/Warlord Hacker-Sprinter | -3/Proximity Caves Hacker-Sprinter | -3/Research Tank | -2/Research Resources | -11 -10 -10 -10 -9 -8 -7 -7 -7 -7 -6 -6 -6 -6 -6 -5 -5 -5 -5 -5 -4 -4 -4 -4 -4 -3 -3 -2 ----------- Run | Yrd Mat Min Exi Min Mat Fac Low Low Dat Pro Fac Low Low Zio Pro Fac Upp Upp Zhi Pro Fac Upp Upp War Pro Res Res Matter Collected 4343 | 297 335 9 19 19 1516 270 . 97 . 20 20 . 60 38 . 112 69 . . 127 247 36 14 240 . 26 772 Remotely . | . . . . . . . . . . . . . . . . . . . . . . . . . . . . Salvage Created 6232 | 158 957 54 . . 2166 200 . 74 . . 29 27 18 . . 112 . . . 21 254 . . 32 14 26 2090 Parts 342 | 16 54 7 . . 109 12 . 10 . . 4 6 2 . . 1 . . . . 12 . . . . 5 104 Haulers Intercepted 9 | . 2 . . . 6 . . . . . . . . . . 1 . . . . . . . . . . . Recyclers Shooed 7 | . 5 1 . . 1 . . . . . . . . . . . . . . . . . . . . . . Parts Field Recycled . | . . . . . . . . . . . . . . . . . . . . . . . . . . . . Retrieved Matter . | . . . . . . . . . . . . . . . . . . . . . . . . . . . . Parts Self-Destructed 16 | . . . . . . . . 9 . 1 . 3 2 . . . . . . . . . . . 1 . . Prevented 1 | . . . . . . . 1 . . . . . . . . . . . . . . . . . . . . Parts Restored . | . . . . . . . . . . . . . . . . . . . . . . . . . . . . Kills | -11 -10 -10 -10 -9 -8 -7 -7 -7 -7 -6 -6 -6 -6 -6 -5 -5 -5 -5 -5 -4 -4 -4 -4 -4 -3 -3 -2 ------- Run | Yrd Mat Min Exi Min Mat Fac Low Low Dat Pro Fac Low Low Zio Pro Fac Upp Upp Zhi Pro Fac Upp Upp War Pro Res Res Combat Hostiles Destroyed 94 | . 12 3 . . 34 . . 6 . . . 4 1 . . . . . . 2 1 . . 1 1 . 29 Melee 3 | . . . . . . . . . . . . . . . . . . . . 2 . . . . 1 . . Guns 38 | . 9 3 . . 25 . . . . . . . . . . . . . . . . . . . . . 1 Cannons 29 | . . . . . 9 . . . . . . . . . . . . . . . 1 . . 1 . . 18 AOE 23 | . 3 . . . . . . 6 . . . 4 1 . . . . . . . . . . . . . 9 Classes Destroyed 18 | 2 6 . . . 3 1 . . . . . . . . . . . . . 1 . . . 1 . . 4 Worker 2 | . 1 . . . 1 . . . . . . . . . . . . . . . . . . . . . . Builder 1 | . . . . . 1 . . . . . . . . . . . . . . . . . . . . . . Tunneler 7 | 5 . . . . 1 . . . . . . . . . . 1 . . . . . . . . . . . Hauler 9 | . 2 . . . 6 . . . . . . . . . . 1 . . . . . . . . . . . Recycler 11 | 1 5 . . . 4 . . . . . . . . . . . . . . . 1 . . . . . . Mechanic 1 | . . . . . . 1 . . . . . . . . . . . . . . . . . . . . . Operator 12 | . 2 . . . 2 4 . . . . 1 . . . . . . . . . . . . . . 2 1 Drone 3 | . . . . . . . . . . . . . . . . . . . . 2 . . . . 1 . . Watcher 11 | . 2 . . . 3 2 . . . . . . . . . . . . . . 1 . . . . . 3 Swarmer 35 | . 3 3 . . 9 . . 6 . . . 4 1 . . . . . . . . . . . . . 9 Grunt 23 | . 9 . . . 14 . . . . . . . . . . . . . . . . . . . . . . Sentry 11 | . . . . . 8 . . . . . . . . . . . . . . . 1 . . . . . 2 Demolisher 3 | . . . . . . . . . . . . . . . . . . . . . . . . . . . 3 Hunter 5 | . . . . . 3 . . . . . . . . . . . . . . . . . . . . . 2 Programmer 4 | . . . . . . . . . . . . . . . . . . . . . . . . . . . 4 Behemoth 1 | . . . . . . . . . . . . . . . . . . . . . . . . . . . 1 Striker 5 | . . . . . . . . . . . . . . . . . . . . . . . . . . . 5 Executioner 4 | . . . . . . . . . . . . . . . . . . . . . . . . 1 . . 3 Best Kill Streak 10 | 6 5 3 . . 7 3 . 3 . . 1 4 1 . . 1 . . . 2 1 . . 1 1 1 10 Combat Bots Only 10 | . 3 3 . . 3 . . 3 . . . 4 1 . . . . . . 2 1 . . 1 1 . 10 Max Kills in Single Turn 3 | 1 3 2 . . 2 1 . 3 . . 1 2 1 . . 1 . . . 1 1 . . 1 1 1 3 Gunslinging 1 | . . 1 . . 1 . . . . . . . . . . . . . . . . . . . . . . Exploded 3 | . 3 . . . . . . 3 . . . 2 1 . . . . . . . . . . . . . 3 Melee 1 | . . . . . . . . . . . . . . . . . . . . 1 . . . . 1 . . Uniques/NPCs Destroyed . | . . . . . . . . . . . . . . . . . . . . . . . . . . . . Combat | -11 -10 -10 -10 -9 -8 -7 -7 -7 -7 -6 -6 -6 -6 -6 -5 -5 -5 -5 -5 -4 -4 -4 -4 -4 -3 -3 -2 -------- Run | Yrd Mat Min Exi Min Mat Fac Low Low Dat Pro Fac Low Low Zio Pro Fac Upp Upp Zhi Pro Fac Upp Upp War Pro Res Res Hostile Shots Fired 777 | . 47 7 . . 173 . 6 5 . 16 18 16 12 . . 3 22 10 . . 13 4 16 12 10 8 379 Missed 300 | . 12 2 . . 41 . 4 3 . 13 15 11 9 . . 1 12 8 . . 5 4 9 6 5 8 132 Hits 477 | . 35 5 . . 132 . 2 2 . 3 3 5 3 . . 2 10 2 . . 8 . 7 6 5 . 247 Melee 5 | . . . . . . . . . . . . . . . . . . . . . . . . . . . 5 Projectile 472 | . 35 5 . . 132 . 2 2 . 3 3 5 3 . . 2 10 2 . . 8 . 7 6 5 . 242 AOE 13 | . . . . . . . . . . . . . . . . . . . . . . . . 6 . . 7 Critical Strikes 29 | . 2 . . . 6 . . . . . . . . . . 1 . . . . 1 . . . . . 19 Damage Taken 10027 | . 412 40 . . 1749 . 32 59 . 39 22 74 44 . . 49 179 35 . . 144 . 170 311 113 . 6555 Core 1902 | . 92 9 . . 141 . . 10 . 21 . 15 . . . . 17 15 . . 12 . 50 62 . . 1458 Absorbed by Shields 182 | . . . . . 160 . . . . . . . . . . . . . . . 22 . . . . . . Reduced by Siege Mode 547 | . . . . . . . . . . . . . . . . . . . . . . . . . . . 547 Ignored by Resistances 987 | . . . . . . . . . . . . . . . . . . . . . . . . . . . 987 Regen/Repaired (Parts) 30 | . . . . . . . . . . . . . . . . . . . . . . . . 30 . . . Core Remaining (%) 88 | 100 . . . 59 74 . . . . 95 . . . . 98 . . . . 96 . . . . 89 100 . Volleys Fired 433 | 9 69 6 . . 158 . . 7 . . . 4 1 . . 13 3 5 . 2 18 . . 8 . 41 89 Largest 3 | 2 2 2 . . 2 . . 1 . . . 1 1 . . 1 1 1 . 1 1 . . 1 . 1 3 Hottest 360 | 70 85 85 . . 138 . . 33 . . . 33 33 . . 85 85 105 . 105 105 . . 105 . 105 360 Shots Fired 746 | 18 128 12 . . 314 . . 7 . . . 4 1 . . 13 3 5 . 2 19 . . 8 . 41 171 Gun 442 | 18 127 12 . . 276 . . . . . . . . . . . . . . . . . . . . . 9 Cannon 285 | . . . . . 38 . . . . . . . . . . 13 3 5 . 2 19 . . 8 . 41 156 Launcher 19 | . 1 . . . . . . 7 . . . 4 1 . . . . . . . . . . . . . 6 Special . | . . . . . . . . . . . . . . . . . . . . . . . . . . . . Kinetic 302 | 9 60 6 . . 223 . . . . . . . . . . . . . . . . . . . . . 4 Thermal 425 | 9 67 6 . . 91 . . . . . . . . . . 13 3 5 . 2 19 . . 8 . 41 161 Explosive 13 | . 1 . . . . . . 7 . . . 4 1 . . . . . . . . . . . . . . Electromagnetic 6 | . . . . . . . . . . . . . . . . . . . . . . . . . . . 6 Robot Hit Streak 30 | 9 10 9 . . 17 . . . . . . . . . . . . . . 2 3 . . 2 . 1 30 Robot Miss Streak 5 | 1 4 1 . . 4 . . . . . . . . . . . . . . 1 . . . 3 . 1 5 Penetration Max 1 | . . . . . 1 . . . . . . . . . . . . . . . . . . . . . . Secondary Targets 5 | . . 1 . . 4 . . . . . . . . . . . . . . . . . . . . . . Max Gunslinging Chain 1 | . . 1 . . 1 . . . . . . . . . . . . . . . . . . . . . . Shots Hit Robots 442 | 14 80 9 . . 200 11 . . . . 1 . . . . 7 . . . 4 5 . . 3 1 3 104 Core Hits 248 | 7 40 4 . . 89 3 . 11 . . 1 5 4 . . 3 . . . 2 4 . . 3 . . 72 Critical Kills 2 | . . . . . . . . . . . . . . . . . . . . . . . . . . 1 1 Critical Parts Destroyed . | . . . . . . . . . . . . . . . . . . . . . . . . . . . . Critical Strikes 12 | . 6 . . . 2 . . . . . . . . . . 2 . . . . . . . . . 1 1 Burn 8 | . 6 . . . 2 . . . . . . . . . . . . . . . . . . . . . . Meltdown 2 | . . . . . . . . . . . . . . . . . . . . . . . . . . 1 1 Sever 2 | . . . . . . . . . . . . . . . . 2 . . . . . . . . . . . Melee Attacks 114 | . . . . . . 37 1 1 . 1 4 . 2 . . 34 3 . . 7 13 . . . 4 5 2 Impact . | . . . . . . . . . . . . . . . . . . . . . . . . . . . . Slashing 114 | . . . . . . 37 1 1 . 1 4 . 2 . . 34 3 . . 7 13 . . . 4 5 2 Piercing . | . . . . . . . . . . . . . . . . . . . . . . . . . . . . Sneak Attacks 7 | . . . . . . 2 . . . . 1 . . . . 2 . . . . 2 . . . . . . Combat Hostiles . | . . . . . . . . . . . . . . . . . . . . . . . . . . . . Follow-up Attacks . | . . . . . . . . . . . . . . . . . . . . . . . . . . . . Damage Inflicted 12963 | 179 1138 127 . . 3505 669 . 335 . . 80 425 151 . . 398 . . . 179 303 . . 139 51 137 5147 Guns 4364 | 179 1045 127 . . 2847 . . . . . . . . . . . . . . . . . . . . . 166 Cannons 5384 | . . . . . 625 . . . . . . . . . . . . . . 38 107 . . 139 . 69 4406 Explosions 1536 | . 93 . . . . . . 335 . . . 425 151 . . . . . . . . . . . . . 532 Melee 1646 | . . . . . . 669 . . . . 80 . . . . 398 . . . 141 196 . . . 51 68 43 Ramming 33 | . . . . . 33 . . . . . . . . . . . . . . . . . . . . . . Kinetic 2862 | 93 456 52 . . 2168 . . . . . . . . . . . . . . . . . . . . . 93 Thermal 6937 | 86 589 75 . . 1304 . . . . . . . . . . . . . . 38 107 . . 139 . 69 4530 Explosive 1004 | . 93 . . . . . . 335 . . . 425 151 . . . . . . . . . . . . . . Electromagnetic 481 | . . . . . . . . . . . . . . . . . . . . . . . . . . . 481 Impact . | . . . . . . . . . . . . . . . . . . . . . . . . . . . . Slashing 1646 | . . . . . . 669 . . . . 80 . . . . 398 . . . 141 196 . . . 51 68 43 Piercing . | . . . . . . . . . . . . . . . . . . . . . . . . . . . . Highest Corruption 14 | . . . . . 6 . . . . . . . . . . 1 1 1 1 1 4 4 4 4 1 . 14 Average Corruption 5 | . . . . . 5 . . . . . . . . . . 1 1 1 1 1 4 4 4 4 1 . 12 Corruption Purged . | . . . . . . . . . . . . . . . . . . . . . . . . . . . . Corruption Blocked 5 | . . . . . . . . . . . . . . . . . . . . . . . . . . . 5 Effects 88 | . . . . . 56 . . . . . . . . . . 3 . 1 . . 1 2 . . . . 25 Message Errors 27 | . . . . . 21 . . . . . . . . . . . . 1 . . . . . . . . 5 Matter Fused 16 | . . . . . 10 . . . . . . . . . . 2 . . . . . . . . . . 4 Heat Flow Errors 8 | . . . . . 7 . . . . . . . . . . . . . . . . . . . . . 1 Energy Discharges 11 | . . . . . 6 . . . . . . . . . . . . . . . . 1 . . . . 4 Parts Fused 1 | . . . . . . . . . . . . . . . . 1 . . . . . . . . . . . Data Loss (minor) 9 | . . . . . 4 . . . . . . . . . . . . . . . . 1 . . . . 4 Data Loss (major) 3 | . . . . . 3 . . . . . . . . . . . . . . . . . . . . . . Misfires 6 | . . . . . 3 . . . . . . . . . . . . . . . 1 . . . . . 2 Alerts 3 | . . . . . 2 . . . . . . . . . . . . . . . . . . . . . 1 Misdirections 3 | . . . . . . . . . . . . . . . . . . . . . . . . . . . 3 Weapon Failures 1 | . . . . . . . . . . . . . . . . . . . . . . . . . . . 1 Overload Shots . | . . . . . . . . . . . . . . . . . . . . . . . . . . . . Overflow Damage 402 | . 20 . . . 43 218 . . . . . 11 . . . . . . . 16 . . . . 21 37 36 Projectiles 83 | . . . . . 43 . . . . . . . . . . . . . . . . . . . . 4 36 Explosions 31 | . 20 . . . . . . . . . . 11 . . . . . . . . . . . . . . . Melee 288 | . . . . . . 218 . . . . . . . . . . . . . 16 . . . . 21 33 . Knockbacks . | . . . . . . . . . . . . . . . . . . . . . . . . . . . . Impact . | . . . . . . . . . . . . . . . . . . . . . . . . . . . . Kinetic . | . . . . . . . . . . . . . . . . . . . . . . . . . . . . Secondary . | . . . . . . . . . . . . . . . . . . . . . . . . . . . . Self-Inflicted Damage 81 | . . . . . . . . 31 . . . . . . . . . . . . . . . . . . 50 Shots 5 | . . . . . . . . 1 . . . . . . . . . . . . . . . . . . 4 Rammed 5 | . . 1 . . 4 . . . . . . . . . . . . . . . . . . . . . . Targets Rammed 5 | . . 1 . . 4 . . . . . . . . . . . . . . . . . . . . . . Kicked . | . . . . . . . . . . . . . . . . . . . . . . . . . . . . Crushed . | . . . . . . . . . . . . . . . . . . . . . . . . . . . . Highest Temperature 464 | 45 174 72 . . 205 2 6 2 2 11 86 134 242 464 140 13 303 56 . 60 21 . 211 . . 10 388 Average Temperature 64 | 21 46 38 . . 70 2 2 2 2 2 33 44 69 164 51 13 116 27 . 31 9 . 110 . . 5 130 Received Heat Transfer 1745 | . 246 . . . 688 . 9 . . 18 6 15 . . . 27 39 . . . 54 . 12 24 9 . 598 Effects 17 | . . . . . . . . . . . . . . 3 . . 3 . . . . . . . . . 11 Shutdowns 1 | . . . . . . . . . . . . . . 1 . . . . . . . . . . . . . Energy Bleed 3 | . . . . . . . . . . . . . . 1 . . . . . . . . . . . . 2 Interference 13 | . . . . . . . . . . . . . . 1 . . 3 . . . . . . . . . 9 Siege Activations 6 | . . . . . . . . . . . . . . . . . . . . . . . . . . . 6 Total Turns 203 | . . . . . . . . . . . . . . . . . . . . . . . . . . . 203 Longest Duration 50 | . . . . . . . . . . . . . . . . . . . . . . . . . . . 50 Martial Activations . | . . . . . . . . . . . . . . . . . . . . . . . . . . . . Shielding Activations . | . . . . . . . . . . . . . . . . . . . . . . . . . . . . Robots Disrupted . | . . . . . . . . . . . . . . . . . . . . . . . . . . . . Combat Hostiles . | . . . . . . . . . . . . . . . . . . . . . . . . . . . . Robots Corrupted . | . . . . . . . . . . . . . . . . . . . . . . . . . . . . Combat Hostiles . | . . . . . . . . . . . . . . . . . . . . . . . . . . . . Parts Fried 2 | . . . . . . . . . . . . . . . . . . . . . . . . . . . 2 Impact Corruptions . | . . . . . . . . . . . . . . . . . . . . . . . . . . . . Robots Melted 2 | . . . . . . . . . . . . . . . . . . . . . . . . . . 1 1 Combat Hostiles 1 | . . . . . . . . . . . . . . . . . . . . . . . . . . . 1 Parts Melted 19 | 2 3 . . . 3 . . . . . . . . . . . . . . . . . . . . . 11 Heat Transferred 9106 | 259 2109 185 . . 2479 . . . . . . . . . . . . . . 37 111 . . 102 . 74 3750 Parts Sabotaged . | . . . . . . . . . . . . . . . . . . . . . . . . . . . . Parts Stolen . | . . . . . . . . . . . . . . . . . . . . . . . . . . . . Parts Stripped . | . . . . . . . . . . . . . . . . . . . . . . . . . . . . Power Chain Reactions 2 | . . . . . . . . . . . . . . . . . . . . . . . . . . . 2 Alert | -11 -10 -10 -10 -9 -8 -7 -7 -7 -7 -6 -6 -6 -6 -6 -5 -5 -5 -5 -5 -4 -4 -4 -4 -4 -3 -3 -2 ------- Run | Yrd Mat Min Exi Min Mat Fac Low Low Dat Pro Fac Low Low Zio Pro Fac Upp Upp Zhi Pro Fac Upp Upp War Pro Res Res Maximum Alert Level 3 | . . . . . 2 . . . . . . . . . . . . . . . 1 . . . . 1 3 Low Security (%) 67 | 100 100 100 . 100 42 100 . . . . 100 . . . . 100 . . . . 22 . . . . 46 73 Level 1 27 | . . . . . 55 . . . . . . . . . . . . . . . 77 . . . . 53 4 Level 2 4 | . . . . . 2 . . . . . . . . . . . . . . . . . . . . . 18 Level 3 . | . . . . . . . . . . . . . . . . . . . . . . . . . . . 3 Level 4 . | . . . . . . . . . . . . . . . . . . . . . . . . . . . . Level 5 . | . . . . . . . . . . . . . . . . . . . . . . . . . . . . High Security . | . . . . . . . . . . . . . . . . . . . . . . . . . . . . Max Security . | . . . . . . . . . . . . . . . . . . . . . . . . . . . . Peak Influence 728 | 25 186 95 . . 403 188 . . . . 7 . . . . 98 . . . . 351 . . . . 311 728 Initial 306 | . 3 61 . . . 176 . . . . . . . . . . . . . . 300 . . . . 306 62 Average 170 | 5 89 45 . . 231 113 . . . . . . . . . 14 . . . . 247 . . . . 229 191 Influence Increases 6001 | 30 512 134 . . 1125 384 60 155 . 99 8 135 155 . . 228 195 15 . 10 673 45 90 50 65 561 1272 Destroy 0b10 Robot/C 1880 | . 240 100 . . 680 . . 120 . 20 . 80 20 . . . . . . . 20 . . 20 . . 580 Destroy 0b10 Robot/NC 285 | 30 60 . . . 90 35 . . . . 5 . . . . 10 . . . 10 10 . . . 5 10 20 Destroy Leader 500 | . 68 20 . . 208 4 . 20 . . . 10 . . . 2 . . . . 12 . . . . . 156 Allied During Kill 26 | . . 14 . . 8 . . . . 4 . . . . . . . . . . . . . . . . . Successful Hack 264 | . 3 . . . 18 97 . . . . . . . . . 38 . . . . 53 . . . . 46 9 Select Force Hacks 60 | . 60 . . . . . . . . . . . . . . . . . . . . . . . . . . Disable Machine 90 | . . . . . 60 . . . . . . . . . . . . . . . . . . . . . 30 Destroy Structure 391 | . 6 . . . 16 23 . . . . 3 . . . . 58 . . . . 38 . . . . 70 177 Advance Influence 600 | . . . . . . . . . . . . . . . . . . . . . 300 . . . . 300 . Partial Spotted 255 | . . . . . 15 60 . . . . . . . . . 45 . . . . 45 . . . . 60 30 Lose Combat Pursuer 1650 | . 75 . . . 30 165 60 15 . 75 . 45 135 . . 75 195 15 . . 195 45 90 30 60 75 270 Influence Decreases 5273 | 25 358 278 15 . 737 618 118 159 92 99 8 50 107 133 . 144 102 114 78 10 322 181 92 263 55 460 655 Entered New Map 1229 | . 2 98 15 . . 212 58 19 92 . . . 17 133 . . 32 34 78 . . 131 42 213 . 4 49 Time Decay 3396 | 25 346 160 . . 647 386 60 140 . 99 8 50 70 . . 144 70 60 . 10 222 50 50 42 45 246 466 Search Patrol Dispatched 300 | . . . . . . . . . . . . . . . . . . . . . 100 . . . . 200 . Lost Part 218 | . 10 . . . 50 . . . . . . . 20 . . . . . . . . . . 8 10 10 110 Lost Ally 130 | . . 20 . . 40 20 . . . . . . . . . . . 20 . . . . . . . . 30 Squads Dispatched 30 | . 4 . . . 6 6 . . . . 1 . . . . 4 . . . . 2 . . . . 3 4 Investigation 13 | . 3 . . . 3 2 . . . . 1 . . . . 1 . . . . . . . . . 2 1 Extermination 5 | . . . . . . 3 . . . . . . . . . 1 . . . . 1 . . . . . . Reinforcement 12 | . 1 . . . 3 1 . . . . . . . . . 2 . . . . 1 . . . . 1 3 Assault . | . . . . . . . . . . . . . . . . . . . . . . . . . . . . Garrison . | . . . . . . . . . . . . . . . . . . . . . . . . . . . . Intercept . | . . . . . . . . . . . . . . . . . . . . . . . . . . . . Searches Triggered 3 | . . . . . . . . . . . . . . . . . . . . . 1 . . . . 2 . Construction Impeded 1 | . . . . . 1 . . . . . . . . . . . . . . . . . . . . . . Haulers Reinforced 1 | . . . . . . . . . . . . . . . . 1 . . . . . . . . . . . Active Scanning Responses . | . . . . . . . . . . . . . . . . . . . . . . . . . . . . Cargo Convoy Interrupts . | . . . . . . . . . . . . . . . . . . . . . . . . . . . . Stealth | -11 -10 -10 -10 -9 -8 -7 -7 -7 -7 -6 -6 -6 -6 -6 -5 -5 -5 -5 -5 -4 -4 -4 -4 -4 -3 -3 -2 --------- Run | Yrd Mat Min Exi Min Mat Fac Low Low Dat Pro Fac Low Low Zio Pro Fac Upp Upp Zhi Pro Fac Upp Upp War Pro Res Res Distress Signals 19 | . 1 . . . 2 1 . . . . . . . . . . . . . . . . . 1 . 1 13 Communications Jammed 20 | . . . . . . . . . . . . . . . . . . . . 2 . . . 15 2 . 1 Distress Signals 16 | . . . . . . . . . . . . . . . . . . . . . . . . 15 . . 1 Times Spotted 331 | . 21 5 . . 55 17 4 4 . 10 1 6 13 . . 5 13 9 . 2 17 3 12 50 7 10 67 Peak Tracking Total 12 | . 4 3 . . 5 6 4 3 . 4 1 3 8 . . 5 11 9 . 2 6 3 9 12 4 5 11 Tactical Retreats 47 | . 5 . . . 2 4 2 1 . 2 . 1 1 . . 1 2 1 . . 7 1 2 1 1 4 9 Traps | -11 -10 -10 -10 -9 -8 -7 -7 -7 -7 -6 -6 -6 -6 -6 -5 -5 -5 -5 -5 -4 -4 -4 -4 -4 -3 -3 -2 ------- Run | Yrd Mat Min Exi Min Mat Fac Low Low Dat Pro Fac Low Low Zio Pro Fac Upp Upp Zhi Pro Fac Upp Upp War Pro Res Res Traps Triggered 11 | . 3 . . . 3 . . . . . . . . . . . . . . . 4 . 1 . . . . Indirectly . | . . . . . . . . . . . . . . . . . . . . . . . . . . . . Trap Hack Attempts . | . . . . . . . . . . . . . . . . . . . . . . . . . . . . Triggered . | . . . . . . . . . . . . . . . . . . . . . . . . . . . . Disarmed . | . . . . . . . . . . . . . . . . . . . . . . . . . . . . Reprogrammed . | . . . . . . . . . . . . . . . . . . . . . . . . . . . . Reused . | . . . . . . . . . . . . . . . . . . . . . . . . . . . . Traps Extracted . | . . . . . . . . . . . . . . . . . . . . . . . . . . . . Installed . | . . . . . . . . . . . . . . . . . . . . . . . . . . . . Triggered . | . . . . . . . . . . . . . . . . . . . . . . . . . . . . Machines | -11 -10 -10 -10 -9 -8 -7 -7 -7 -7 -6 -6 -6 -6 -6 -5 -5 -5 -5 -5 -4 -4 -4 -4 -4 -3 -3 -2 ---------- Run | Yrd Mat Min Exi Min Mat Fac Low Low Dat Pro Fac Low Low Zio Pro Fac Upp Upp Zhi Pro Fac Upp Upp War Pro Res Res Machines Disabled 7 | . . . . . 4 . . . . 1 . . . . . . . . . . . . . . . . 2 Max in Single Turn 1 | . . . . . 1 . . . . 1 . . . . . . . . . . . . . . . . 1 Garrison Access 6 | . . . . . 1 2 . . . . . . . . . 2 . . . . . . . . . 1 . Machines Repaired . | . . . . . . . . . . . . . . . . . . . . . . . . . . . . Machines Dismantled . | . . . . . . . . . . . . . . . . . . . . . . . . . . . . Machines Sabotaged . | . . . . . . . . . . . . . . . . . . . . . . . . . . . . Overloaded Fab Kills . | . . . . . . . . . . . . . . . . . . . . . . . . . . . . Hacking | -11 -10 -10 -10 -9 -8 -7 -7 -7 -7 -6 -6 -6 -6 -6 -5 -5 -5 -5 -5 -4 -4 -4 -4 -4 -3 -3 -2 --------- Run | Yrd Mat Min Exi Min Mat Fac Low Low Dat Pro Fac Low Low Zio Pro Fac Upp Upp Zhi Pro Fac Upp Upp War Pro Res Res Machines Accessed 86 | . 7 . 2 . 9 19 1 . 3 2 3 . . 1 . 7 . 1 4 . 7 . . 10 . 9 1 Terminals 36 | . 5 . . . 6 10 1 . . 1 1 . . . . 2 . . . . 5 . . . . 4 1 Fabricators 9 | . . . . . . 5 . . . . 2 . . . . . . . . . 2 . . . . . . Repair Stations . | . . . . . . . . . . . . . . . . . . . . . . . . . . . . Recycling Units 3 | . 2 . . . . . . . . . . . . . . . . . . . . . . . . 1 . Scanalyzers 6 | . . . . . 2 1 . . . . . . . . . 2 . . . . . . . . . 1 . Garrison Access 10 | . . . . . 1 3 . . . . . . . . . 3 . . . . . . . . . 3 . Total Hacks 213 | . 16 . 2 . 24 40 1 . 24 2 6 . . 3 . 14 . 1 17 . 15 . . 20 . 23 5 Successful 143 | . 9 . 2 . 15 23 1 . 24 2 1 . . 3 . 6 . 1 17 . 9 . . 20 . 8 2 Failed 69 | . 7 . . . 9 17 . . . . 5 . . . . 7 . . . . 6 . . . . 15 3 Catastrophic 8 | . 1 . . . . 1 . . . . 1 . . . . 1 . . . . 1 . . . . 2 1 Database Lockouts 1 | . . . . . . . . . . . . . . . . 1 . . . . . . . . . . . Manual 76 | . 15 . 1 . 14 24 . . . . 5 . . . . . . . . . 7 . . 1 . 8 1 Terminals 85 | . 13 . . . 14 23 1 . . 1 2 . . . . 3 . . . . 12 . . . . 11 5 Fabricators 16 | . . . . . . 9 . . . . 4 . . . . . . . . . 3 . . . . . . Repair Stations . | . . . . . . . . . . . . . . . . . . . . . . . . . . . . Recycling Units 5 | . 3 . . . . . . . . . . . . . . . . . . . . . . . . 2 . Scanalyzers 19 | . . . . . 8 2 . . . . . . . . . 5 . . . . . . . . . 4 . Garrison Access 20 | . . . . . 2 6 . . . . . . . . . 6 . . . . . . . . . 6 . Terminal Hacks 87 | . 1 . 2 . 1 6 1 . 24 2 . . . 3 . 1 . 1 17 . 5 . . 20 . 2 1 Record 19 | . . . 1 . . . 1 . 3 2 . . . . . . . . 5 . . . . 7 . . . Part Schematic 20 | . . . . . . . . . 13 . . . . 3 . . . . 4 . . . . . . . . Robot Schematic 5 | . . . . . . . . . 5 . . . . . . . . . . . . . . . . . . Robot Analysis 4 | . . . . . . . . . . . . . . . . . . . 4 . . . . . . . . Prototype ID Bank 21 | . 1 . . . . 1 . . 3 . . . . . . . . . 4 . 1 . . 11 . . . Open Door 3 | . . . . . . . . . . . . . . . . . . 1 . . . . . 2 . . . Branch Access Points 3 | . . . . . . 1 . . . . . . . . . . . . . . 1 . . . . 1 . Alert Level 1 | . . . . . . . . . . . . . . . . . . . . . 1 . . . . . . Locate Traps 4 | . . . . . . 2 . . . . . . . . . 1 . . . . 1 . . . . . . Maintenance Status 4 | . . . . . 1 1 . . . . . . . . . . . . . . 1 . . . . 1 . Security Status 1 | . . . . . . . . . . . . . . . . . . . . . . . . . . . 1 Recall Extermination 1 | . . . . . . 1 . . . . . . . . . . . . . . . . . . . . . Proto ID Catalog 1 | . . . 1 . . . . . . . . . . . . . . . . . . . . . . . . Fabricator Hacks 1 | . . . . . . . . . . . 1 . . . . . . . . . . . . . . . . Load Schematic 1 | . . . . . . . . . . . 1 . . . . . . . . . . . . . . . . Repair Station Hacks . | . . . . . . . . . . . . . . . . . . . . . . . . . . . . Recycling Unit Hacks . | . . . . . . . . . . . . . . . . . . . . . . . . . . . . Scanalyzer 15 | . . . . . 6 2 . . . . . . . . . 3 . . . . . . . . . 4 . Retrieve Study 15 | . . . . . 6 2 . . . . . . . . . 3 . . . . . . . . . 4 . Garrison Access Hacks 6 | . . . . . 1 2 . . . . . . . . . 2 . . . . . . . . . 1 . Seal Access 6 | . . . . . 1 2 . . . . . . . . . 2 . . . . . . . . . 1 . Unauthorized Hacks 33 | . 7 . . . 7 13 . . . . . . . . . . . . . . 4 . . . . 1 1 Terminals 25 | . 5 . . . 7 9 . . . . . . . . . . . . . . 3 . . . . . 1 Assimilate 3 | . . . . . . 2 . . . . . . . . . . . . . . . . . . . . 1 Botnet 13 | . 2 . . . 2 6 . . . . . . . . . . . . . . 3 . . . . . . Skim 9 | . 3 . . . 5 1 . . . . . . . . . . . . . . . . . . . . . Fabricators 5 | . . . . . . 4 . . . . . . . . . . . . . . 1 . . . . . . Fabnet 5 | . . . . . . 4 . . . . . . . . . . . . . . 1 . . . . . . Repair Stations . | . . . . . . . . . . . . . . . . . . . . . . . . . . . . Recycling Units 3 | . 2 . . . . . . . . . . . . . . . . . . . . . . . . 1 . Mask 1 | . . . . . . . . . . . . . . . . . . . . . . . . . . 1 . Tunnel 2 | . 2 . . . . . . . . . . . . . . . . . . . . . . . . . . Scanalyzers . | . . . . . . . . . . . . . . . . . . . . . . . . . . . . Garrison Access . | . . . . . . . . . . . . . . . . . . . . . . . . . . . . Data Cores Recovered 6 | . . . . . . 3 . . . . 1 . . . . . . . . . . . . . . 2 . Used . | . . . . . . . . . . . . . . . . . . . . . . . . . . . . Hacking Detections 49 | . 5 . . . 6 17 . . . . 3 . . . . 6 . . . . 5 . . . . 6 1 Full Trace Events 8 | . 1 . . . 1 2 . . . . 1 . . . . 1 . . . . . . . . . 2 . Feedback Events 2 | . . . . . . . . . . . . . . . . 1 . . . . . . . . . 1 . Corruption 1 | . . . . . . . . . . . . . . . . 1 . . . . . . . . . . . Hackware Fried 1 | . . . . . . . . . . . . . . . . . . . . . . . . . . 1 . Feedback Blocked . | . . . . . . . . . . . . . . . . . . . . . . . . . . . . Robot Schematics Acquired 7 | . . . . . . . . . 5 . . . . 2 . . . . . . . . . . . . . Robots Built . | . . . . . . . . . . . . . . . . . . . . . . . . . . . . Authchips . | . . . . . . . . . . . . . . . . . . . . . . . . . . . . Time . | . . . . . . . . . . . . . . . . . . . . . . . . . . . . Total Robot Build Rating . | . . . . . . . . . . . . . . . . . . . . . . . . . . . . Part Schematics Acquired 33 | . . . . . . . . . 13 . . . . 16 . . . . 4 . . . . . . . . Parts Built . | . . . . . . . . . . . . . . . . . . . . . . . . . . . . Authchips . | . . . . . . . . . . . . . . . . . . . . . . . . . . . . Time . | . . . . . . . . . . . . . . . . . . . . . . . . . . . . Total Part Build Rating . | . . . . . . . . . . . . . . . . . . . . . . . . . . . . Part Studies Acquired 14 | . . . . . 6 2 . . . . . . . . . 3 . . . . . . . . . 3 . Parts Repaired . | . . . . . . . . . . . . . . . . . . . . . . . . . . . . Time . | . . . . . . . . . . . . . . . . . . . . . . . . . . . . Parts Recycled . | . . . . . . . . . . . . . . . . . . . . . . . . . . . . Recycled Matter . | . . . . . . . . . . . . . . . . . . . . . . . . . . . . Retrieved Matter . | . . . . . . . . . . . . . . . . . . . . . . . . . . . . Retrieved Components . | . . . . . . . . . . . . . . . . . . . . . . . . . . . . Parts Scanalyzed . | . . . . . . . . . . . . . . . . . . . . . . . . . . . . Part Schematics Acquired . | . . . . . . . . . . . . . . . . . . . . . . . . . . . . Parts Damaged . | . . . . . . . . . . . . . . . . . . . . . . . . . . . . Bothacking | -11 -10 -10 -10 -9 -8 -7 -7 -7 -7 -6 -6 -6 -6 -6 -5 -5 -5 -5 -5 -4 -4 -4 -4 -4 -3 -3 -2 ------------ Run | Yrd Mat Min Exi Min Mat Fac Low Low Dat Pro Fac Low Low Zio Pro Fac Upp Upp Zhi Pro Fac Upp Upp War Pro Res Res Used RIF Installer . | . . . . . . . . . . . . . . . . . . . . . . . . . . . . Robots Hacked 8 | . . . . . . . . . . 4 . 1 . . . . . 1 . . . . . . . 1 1 Non-combat . | . . . . . . . . . . . . . . . . . . . . . . . . . . . . Combat 8 | . . . . . . . . . . 4 . 1 . . . . . 1 . . . . . . . 1 1 Robot Hacks Applied . | . . . . . . . . . . . . . . . . . . . . . . . . . . . . Relay Couplers Released . | . . . . . . . . . . . . . . . . . . . . . . . . . . . . Fabnet Peak Effective % 12 | . . . . . . . . . . 12 12 12 12 12 4 4 4 4 4 . . . . . 3 3 1 Autooverrided 8 | . . . . . . . . . . 4 . 1 . . . . . 1 . . . . . . . 1 1 Robots Rewired . | . . . . . . . . . . . . . . . . . . . . . . . . . . . . Allies Hacked . | . . . . . . . . . . . . . . . . . . . . . . . . . . . . Hacks Repelled . | . . . . . . . . . . . . . . . . . . . . . . . . . . . . Allies | -11 -10 -10 -10 -9 -8 -7 -7 -7 -7 -6 -6 -6 -6 -6 -5 -5 -5 -5 -5 -4 -4 -4 -4 -4 -3 -3 -2 -------- Run | Yrd Mat Min Exi Min Mat Fac Low Low Dat Pro Fac Low Low Zio Pro Fac Upp Upp Zhi Pro Fac Upp Upp War Pro Res Res Total Allies 14 | . . 3 . . . 2 . . . 4 . 1 . . . . . 1 . . . . . . . 1 2 Largest Group 3 | . . 3 2 2 2 2 . . . 2 . 1 . . . . . 1 . . . . . . . 1 1 Highest-Rated Group 76 | . . 40 24 24 24 36 . . . 76 . 32 . . . . . 41 . . . . . . . 64 10 Highest-Rated Ally 64 | . . 16 16 16 16 26 . . . 47 . 32 . . . . . 41 . . . . . . . 64 10 Total Orders 1 | . . . . . . . . . . . . . . . . . . . . . . . . . . 1 . RETURN 1 | . . . . . . . . . . . . . . . . . . . . . . . . . . 1 . Ally Attacks 48 | . . 14 . . 16 . . . . 14 . . . . . . . 3 . . . . . . . . 1 Total Damage 648 | . . 167 . . 135 . . . . 247 . . . . . . . 78 . . . . . . . . 21 Kills 3 | . . 2 . . . . . . . 1 . . . . . . . . . . . . . . . . . Allies Corrupted . | . . . . . . . . . . . . . . . . . . . . . . . . . . . . Allies Melted 2 | . . . . . . . . . . . . . . . . . . . . . . . . 2 . . . Intel | -11 -10 -10 -10 -9 -8 -7 -7 -7 -7 -6 -6 -6 -6 -6 -5 -5 -5 -5 -5 -4 -4 -4 -4 -4 -3 -3 -2 ------- Run | Yrd Mat Min Exi Min Mat Fac Low Low Dat Pro Fac Low Low Zio Pro Fac Upp Upp Zhi Pro Fac Upp Upp War Pro Res Res Active Infowar (turns) 14087 | 31 1420 333 414 177 3897 907 125 285 21 396 90 192 147 369 97 484 151 124 77 109 478 106 102 1118 151 523 1763 Optics 7789 | . . . . . . 899 125 285 21 396 90 192 147 369 97 484 151 124 77 109 478 106 102 1118 151 523 1745 Structural 5986 | . . . . . 3896 904 125 285 21 396 90 192 77 . . . . . . . . . . . . . . Seismic 2660 | 31 1420 333 414 177 285 . . . . . . . . . . . . . . . . . . . . . . Cloaking 3173 | . . . . . . . . . . . 17 32 17 8 22 465 101 . 41 109 455 106 102 361 151 488 698 Jamming 4601 | . . . . . . 149 125 285 21 393 6 17 10 2 20 . . . 1 109 478 106 102 358 151 523 1745 Robot Analysis Total 4 | . . . . . . . . . . . . . . . . . . . 4 . . . . . . . . Derelict Logs Recovered 16 | . . . . . . . 1 1 . 2 . 1 3 1 . . . 1 . 3 . 1 2 . . . . Drone Launches 1 | . . . . . . . . . . . . . . . . . . . . . . . . . . 1 . Drone Recoveries 1 | . . . . . . . . . . . . . . . . . . . . . . . . . . 1 . Exploration | -11 -10 -10 -10 -9 -8 -7 -7 -7 -7 -6 -6 -6 -6 -6 -5 -5 -5 -5 -5 -4 -4 -4 -4 -4 -3 -3 -2 ------------- Run | Yrd Mat Min Exi Min Mat Fac Low Low Dat Pro Fac Low Low Zio Pro Fac Upp Upp Zhi Pro Fac Upp Upp War Pro Res Res Turns Passed 14442 | 111 1420 333 414 177 3897 907 125 285 21 396 90 192 147 369 97 484 151 124 77 109 478 106 102 1118 151 523 2038 Spaces Moved 19725 | 62 617 186 253 107 1539 2109 402 909 90 1063 268 578 454 955 284 1076 492 542 150 397 1179 408 529 1310 492 1368 1906 Core 14 | 3 3 . . . . . . . . . . . . . . . . . . . . . . 1 . . 7 Treads 3020 | . 231 186 253 107 1539 . . . . . . . . . . . . . . . . . . . . . 704 Legs . | . . . . . . . . . . . . . . . . . . . . . . . . . . . . Wheels 442 | 59 383 . . . . . . . . . . . . . . . . . . . . . . . . . . Hover 66 | . . . . . . . . . . . . . . . . . . . . . . . . . . . 66 Flight 16183 | . . . . . . 2109 402 909 90 1063 268 578 454 955 284 1076 492 542 150 397 1179 408 529 1309 492 1368 1129 Fastest Speed 14 | 50 95 160 160 160 160 23 23 23 23 23 20 20 20 20 20 17 20 20 20 20 17 17 14 17 18 19 23 Average Speed 46 | 90 122 160 160 160 192 23 23 23 23 23 20 20 20 26 20 18 20 20 20 20 17 17 16 18 20 22 76 Slowest Speed 1050 | 95 350 160 160 160 280 23 23 23 23 23 20 20 20 90 20 87 20 20 20 20 17 17 17 1050 21 23 382 Overloaded Moves 39 | . . . . . . . . . . . . . . . . . . . . . . . 18 . 15 6 . Propulsion Burnouts . | . . . . . . . . . . . . . . . . . . . . . . . . . . . . Robots Hopped 50 | . . . . . . 5 . . . . . . . . . 2 2 1 . . 20 . 1 2 . 6 11 Potential Cave-ins 23 | . . . . . . . . . . . . . . . . 5 2 . . . . . . 13 . 2 1 Cave-ins Triggered . | . . . . . . . . . . . . . . . . . . . . . . . . . . . . Exploration Rate (%) 60 | 4 88 43 62 24 91 65 67 93 79 92 10 73 71 86 45 28 59 70 60 69 33 60 87 97 63 39 41 Regions Visited 27 Branch Regions 19 Pre-discovered Areas 12 | . 2 . 1 . 2 . . . 1 . . . . . . . . . 3 2 . . 1 . . . . Known Exits Taken 12 | . . . . . 1 1 . . . 1 1 . . . 1 1 1 1 1 1 1 . . . . 1 . Unknown Exits Taken 15 | 1 1 1 1 1 . . 1 1 1 . . 1 1 1 . . . . . . . 1 1 1 1 . . Scrap Searched 28 | . . 1 . 1 . . 4 4 . 2 . 2 3 2 . . 1 . . 3 . 1 3 . 1 . . Spaces Dug 158 | . 5 . . . . 23 1 10 . . 3 . 2 . . 34 4 5 . . 19 . . . . 36 16 Terrain Destroyed 262 | . 5 . . . 9 23 1 21 . . 3 17 8 . . 38 6 5 . 1 26 . . . . 42 57 Melee 72 | . . . . . . 23 1 1 . . 3 . 2 . . 25 3 . . . 10 . . . . 4 . Projectile 128 | . . . . . 9 . . . . . . . . . . 13 3 5 . 1 16 . . . . 38 43 AOE 62 | . 5 . . . . . . 20 . . . 17 6 . . . . . . . . . . . . . 14 Terrain Rammed . | . . . . . . . . . . . . . . . . . . . . . . . . . . . . Walls Destroyed . | . . . . . . . . . . . . . . . . . . . . . . . . . . . . Machines Disabled . | . . . . . . . . . . . . . . . . . . . . . . . . . . . . Actions | -11 -10 -10 -10 -9 -8 -7 -7 -7 -7 -6 -6 -6 -6 -6 -5 -5 -5 -5 -5 -4 -4 -4 -4 -4 -3 -3 -2 --------- Run | Yrd Mat Min Exi Min Mat Fac Low Low Dat Pro Fac Low Low Zio Pro Fac Upp Upp Zhi Pro Fac Upp Upp War Pro Res Res Total 24014 | 96 1153 209 263 113 2179 2474 432 976 89 1212 297 649 505 1067 323 1295 533 553 197 413 1400 444 539 2185 534 1529 2355 Wait 3122 | 9 432 15 6 7 327 292 30 50 . 142 22 68 47 90 34 123 33 2 21 3 140 35 10 813 33 85 253 Move 19605 | 61 616 185 252 106 1538 2098 401 908 89 1062 267 577 453 954 283 1071 488 539 149 396 1141 407 526 1306 491 1355 1886 Hop 43 | . . . . . . 5 . . . . . . . . . 2 1 1 . . 17 . 1 1 . 6 9 Pick Up 135 | 9 10 1 2 . 41 5 . 4 . 2 2 . 1 3 . 11 1 1 6 . 8 . . 5 . 10 13 Fast Attach 140 | 7 5 . . . 19 7 . . . 2 . . . 7 . 10 . . 6 . 5 . 1 18 . 5 48 Attach 50 | . 2 . . . 11 9 . . . . 2 . 1 . 1 4 . . 1 1 3 . . 3 2 3 7 Detach 16 | . . . . . 2 . . . . . . . . . 2 2 . 1 . 1 . . . 2 2 . 4 Swap 77 | . 8 . 1 . 23 1 . 2 . . . . . 4 2 6 3 1 3 2 2 1 . 3 1 6 8 Drop 230 | 1 11 1 2 . 56 18 . 4 . 3 . . . 9 1 19 1 3 11 1 11 1 1 26 1 13 36 Fire 433 | 9 69 6 . . 158 . . 7 . . . 4 1 . . 13 3 5 . 2 18 . . 8 . 41 89 Melee 114 | . . . . . . 37 1 1 . 1 4 . 2 . . 34 3 . . 7 13 . . . 4 5 2 Ram . | . . . . . . . . . . . . . . . . . . . . . . . . . . . . Kick . | . . . . . . . . . . . . . . . . . . . . . . . . . . . . Crush 5 | . . 1 . . 4 . . . . . . . . . . . . . . . . . . . . . . Escape Stasis 42 | . . . . . . . . . . . . . . . . . . . . . 42 . . . . . . Rewire 2 | . . . . . . 2 . . . . . . . . . . . . . . . . . . . . . Trap . | . . . . . . . . . . . . . . . . . . . . . . . . . . . . Miscellaneous . | . . . . . . . . . . . . . . . . . . . . . . . . . . . . Route ------- -11/Scrapyard -10/Materials (discovered 4 exits: [*Mat x2] / [*Min] / [*Sub]) -10/Mines -10/Exiles -9/Mines -8/Materials (discovered 3 exits: *Fac x3) -7/Factory (discovered 7 exits: *Fac x3 / *Sto x2 / *Low x2) -7/Lower Caves -7/Lower Caves (discovered 2 exits: *Fac / *Dat) -7/Data Miner -6/Proximity Caves -6/Factory (discovered 4 exits: Fac x2 / *Low x2) -6/Lower Caves -6/Lower Caves (discovered 2 exits: *Fac / *Zio) -6/Zion -5/Proximity Caves -5/Factory (discovered 5 exits: *Fac x2 / *Upp / Ext x2) -5/Upper Caves -5/Upper Caves (discovered 2 exits: *Fac / *Zhi) -5/Zhirov -4/Proximity Caves -4/Factory (discovered 4 exits: *Res / *Upp x2 / Arm) -4/Upper Caves -4/Upper Caves (discovered 2 exits: *Res / *War) -4/Warlord -3/Proximity Caves -3/Research (discovered 4 exits: *Res x2 / *Qua x2) -2/Research History --------- Turn | Location | Event 21 | -11/Scrapyard | Discovered new exit (range 16) 112 | -11/Scrapyard | Entered Materials 316 | -10/Materials | Build established: Mutant 610 | -10/Materials | Discovered new exit (range 8) 721 | -10/Materials | Discovered new exit (range 12) 1241 | -10/Materials | Build established: Scavenger-Mutant 1243 | -10/Materials | Discovered new exit (range 14) 1329 | -10/Materials | Discovered new exit (range 15) 1532 | -10/Materials | Entered Mines 1564 | -10/Mines | Assisted by bots powering up and referring to "LRC-V3" 1577 | -10/Mines | Met a Derelict bent on vengeance 1760 | -10/Mines | Received a Rocket Launcher from a helpful Derelict 1845 | -10/Mines | Deemed a non-threat by the Exiles lab entrance 1845 | -10/Mines | Discovered new exit (range 5) 1865 | -10/Mines | Entered Exiles 1865 | -10/Exiles | Accompanied by 2 allies 1904 | -10/Exiles | Met 8R-AWN 1931 | -10/Exiles | Met EX-HEX 1979 | -10/Exiles | Met EX-BIN 1998 | -10/Exiles | Aligned with FarCom system 2000 | -10/Exiles | Given EX-Vault access code 2037 | -10/Exiles | Opened EX-Vault 2053 | -10/Exiles | Found Trap Reconfigurator 2084 | -10/Exiles | Warned to stay clear of 0b10 Research branches 2106 | -10/Exiles | Exiles lab attacked by MAIN.C 2149 | -10/Exiles | Learned location of Zion (-6) 2253 | -10/Exiles | Discovered new exit (range 14) 2279 | -10/Exiles | Left Exiles lab with Trap Reconfigurator 2279 | -10/Exiles | Entered Mines 2279 | -9/Mines | Accompanied by 2 allies 2367 | -9/Mines | Discovered new exit (range 7) 2456 | -9/Mines | Entered Materials 2456 | -8/Materials | Accompanied by 2 allies 2456 | -8/Materials | Evolved 4 slots: Propulsion x1, Utility x3 2675 | -8/Materials | Discovered new exit (range 12) 3722 | -8/Materials | Discovered new exit (range 16) 4760 | -8/Materials | Learned 2 Lower Caves zone layouts 4816 | -8/Materials | Learned 2 Lower Caves zone layouts 4864 | -8/Materials | Learned 2 Lower Caves zone layouts 4903 | -8/Materials | Learned Factory security intel 4948 | -8/Materials | Identified exit to Factory 5064 | -8/Materials | Learned location of 2 exits from Factory 5120 | -8/Materials | Learned Factory emergency access door positions 5874 | -8/Materials | Build established: Mutant 6353 | -8/Materials | Entered Factory 6353 | -7/Factory | Evolved 2 slots: Propulsion x2 6354 | -7/Factory | Identified exit to Factory 6354 | -7/Factory | Identified exit to Lower Caves 6355 | -7/Factory | Identified exit to Storage 6542 | -7/Factory | Discovered exit to Factory (range 13) 6757 | -7/Factory | Build established: Hacker-Scout 7235 | -7/Factory | Build established: Infiltrator-Ninja 7260 | -7/Factory | Entered Lower Caves 7381 | -7/Lower Caves | Learned 12 Factory zone layouts 7381 | -7/Lower Caves | Discovered new exit (range 18) 7385 | -7/Lower Caves | Entered another Lower Caves area 7391 | -7/Lower Caves | Encountered a Warlord checkpoint 7422 | -7/Lower Caves | Learned location of 1 exit from Factory 7514 | -7/Lower Caves | Discovered exit to Factory (range 9) 7558 | -7/Lower Caves | Build established: Infiltrator-Sprinter 7630 | -7/Lower Caves | Discovered new exit (range 9) 7670 | -7/Lower Caves | Entered Data Miner 7670 | -7/Data Miner | Discovered new exit (range 6) 7674 | -7/Data Miner | Met Data Miner 7682 | -7/Data Miner | Learned location of Section 7 (-3) 7682 | -7/Data Miner | Acquired the access code to Warlord's prototype stash 7685 | -7/Data Miner | Received God Mode back door access code from Data Miner 7691 | -7/Data Miner | Entered Proximity Caves 7697 | -6/Proximity Caves | Learned 4 Factory zone layouts 7706 | -6/Proximity Caves | Found Alien Artifact 7706 | -6/Proximity Caves | Identified Dimensional Node Initializer 7706 | -6/Proximity Caves | Initialized slip node 7804 | -6/Proximity Caves | Attracted the attention of an 0b10 checkpoint 7940 | -6/Proximity Caves | Learned Factory security intel 7957 | -6/Proximity Caves | Discovered exit to Factory (range 6) 8087 | -6/Proximity Caves | Entered Factory 8087 | -6/Factory | Evolved 2 slots: Propulsion x1, Utility x1 8088 | -6/Factory | Identified exit to Lower Caves 8089 | -6/Factory | Identified exit to Factory 8177 | -6/Factory | Entered Lower Caves 8307 | -6/Lower Caves | Spotted B-75 Beast 8348 | -6/Lower Caves | Discovered new exit (range 6) 8349 | -6/Lower Caves | Encountered a Warlord checkpoint 8369 | -6/Lower Caves | Entered another Lower Caves area 8373 | -6/Lower Caves | Discovered exit to Factory (range 19) 8402 | -6/Lower Caves | Learned Factory stockpile data 8426 | -6/Lower Caves | Learned Factory emergency access door positions 8488 | -6/Lower Caves | Discovered new exit (range 3) 8505 | -6/Lower Caves | Learned Factory garrison access intel 8516 | -6/Lower Caves | Entered Zion 8521 | -6/Zion | Found Prototype Device 8522 | -6/Zion | Identified Phasing AFG 8535 | -6/Zion | Given A8's code to call for help 8551 | -6/Zion | Discovered new exit (range 15) 8569 | -6/Zion | Learned Factory emergency access door positions 8611 | -6/Zion | Received a hallucinogenic algorithm 8622 | -6/Zion | Rebuked by Imprinter 8656 | -6/Zion | Given the Hacking Drone Bay 8656 | -6/Zion | Found Prototype Device 8656 | -6/Zion | Identified Hacking Drone Bay 8664 | -6/Zion | Learned location of 1 exit from Factory 8691 | -6/Zion | Found Prototype Device 8691 | -6/Zion | Identified Bomb Factory No. 2 8885 | -6/Zion | Entered Proximity Caves 8981 | -5/Proximity Caves | Discovered exit to Factory (range 5) 8982 | -5/Proximity Caves | Entered Factory 8982 | -5/Factory | Evolved 2 slots: Power x1, Propulsion x1 8983 | -5/Factory | Identified exit to Extension 8984 | -5/Factory | Identified exit to Factory 8987 | -5/Factory | Loaded intel: 4 garrison access locations 9075 | -5/Factory | Central database locked down 9076 | -5/Factory | Discovered exit to Factory (range 12) 9327 | -5/Factory | Build established: Hacker-Sprinter 9429 | -5/Factory | Discovered new exit (range 9) 9466 | -5/Factory | Identified exit to Upper Caves 9466 | -5/Factory | Entered Upper Caves 9599 | -5/Upper Caves | Encountered a Warlord checkpoint 9615 | -5/Upper Caves | Discovered new exit (range 12) 9617 | -5/Upper Caves | Identified exit to Upper Caves 9617 | -5/Upper Caves | Entered another Upper Caves area 9630 | -5/Upper Caves | Discovered exit to Factory (range 5) 9732 | -5/Upper Caves | Discovered new exit (range 14) 9741 | -5/Upper Caves | Identified exit to Zhirov 9741 | -5/Upper Caves | Entered Zhirov 9741 | -5/Zhirov | Discovered new exit (range 3) 9748 | -5/Zhirov | Met Zhirov 9752 | -5/Zhirov | Learned location of Command (-1) 9752 | -5/Zhirov | Learned location of Quarantine (-3) 9752 | -5/Zhirov | Learned location of Testing (-2) 9754 | -5/Zhirov | Zhirov requested help retrieving the SGEMP Prototype 9758 | -5/Zhirov | Found Alien Artifact 9758 | -5/Zhirov | Identified Integrated Dissipator 9758 | -5/Zhirov | Installed Integrated Dissipator, increased core heat dissipation (+20) 9817 | -5/Zhirov | Identified exit to Proximity Caves 9818 | -5/Zhirov | Entered Proximity Caves 9823 | -4/Proximity Caves | Spotter reported a threat 9832 | -4/Proximity Caves | Spotter reported a threat 9865 | -4/Proximity Caves | Learned location of Armory (-4) 9901 | -4/Proximity Caves | Spotted B-86 Titan 9927 | -4/Proximity Caves | Entered Factory 9927 | -4/Factory | Evolved 2 slots: Propulsion x1, Utility x1 9928 | -4/Factory | Identified exit to Upper Caves 10177 | -4/Factory | Search patrols dispatched 10266 | -4/Factory | Identified exit to Armory 10266 | -4/Factory | Watched by a mysterious "MATRIX" hacker. 10400 | -4/Factory | Discovered new exit (range 19) 10405 | -4/Factory | Entered Upper Caves 10419 | -4/Upper Caves | Learned 12 Research zone layouts 10480 | -4/Upper Caves | Discovered new exit (range 11) 10511 | -4/Upper Caves | Entered another Upper Caves area 10523 | -4/Upper Caves | Learned Research trap positions 10534 | -4/Upper Caves | Discovered new exit (range 10) 10610 | -4/Upper Caves | Discovered new exit (range 13) 10613 | -4/Upper Caves | Attracted the attention of an 0b10 checkpoint 10613 | -4/Upper Caves | Entered Warlord 10625 | -4/Warlord | Discovered new exit (range 14) 10635 | -4/Warlord | System corruption cleaned by Quarantine Array 10686 | -4/Warlord | Visited the Vortex Lab 10696 | -4/Warlord | Warlord's base attacked by MAIN.C 10698 | -4/Warlord | Opened Warlord's prototype stash 10719 | -4/Warlord | Found Prototype Reactor 10719 | -4/Warlord | Identified Vortex Chain Reactor 10740 | -4/Warlord | Found Prototype Processor 10740 | -4/Warlord | Identified Exp. Core Analyzer 10743 | -4/Warlord | Found Prototype Processor 10743 | -4/Warlord | Identified Exp. Targeting Computer 10782 | -4/Warlord | Opened side exit 10815 | -4/Warlord | Met Warlord 11037 | -4/Warlord | Spotted Striker 11041 | -4/Warlord | Warlord forces counterattacked 11089 | -4/Warlord | Lost 3 allies 11193 | -4/Warlord | Lost 4 allies 11371 | -4/Warlord | Warlord base infiltrated, sounded retreat 11414 | -4/Warlord | Spotted Striker 11473 | -4/Warlord | Spotted Executioner 11479 | -4/Warlord | Lost 4 allies 11483 | -4/Warlord | Destroyed Executioner 11514 | -4/Warlord | Spotted Striker 11540 | -4/Warlord | Spotted Striker 11542 | -4/Warlord | Spotted Executioner 11576 | -4/Warlord | Found Prototype Device 11576 | -4/Warlord | Identified Exp. Thermal Shield 11602 | -4/Warlord | Spotted Executioner 11602 | -4/Warlord | Spotted B-90 Cyclops 11603 | -4/Warlord | Lost 7 allies 11604 | -4/Warlord | Spotted Striker 11694 | -4/Warlord | Lost 12 allies 11725 | -4/Warlord | Spotted Executioner 11725 | -4/Warlord | Spotted Striker 11731 | -4/Warlord | Entered Proximity Caves 11739 | -3/Proximity Caves | Spotter reported a threat 11740 | -3/Proximity Caves | Spotter reported a threat 11761 | -3/Proximity Caves | Lost 5 allies 11880 | -3/Proximity Caves | Discovered new exit (range 5) 11882 | -3/Proximity Caves | Entered Research 11882 | -3/Research | Evolved 2 slots: Utility x2 11883 | -3/Research | Identified exit to Research 11884 | -3/Research | Loaded intel: 70 trap records 12000 | -3/Research | Identified exit to Quarantine 12053 | -3/Research | Found Fusion Bomb Launcher 12110 | -3/Research | Hacking Suite fried by hacking feedback 12117 | -3/Research | Found Gamma Bomb Array 12120 | -3/Research | Spotted B-86 Titan 12132 | -3/Research | Search patrols dispatched 12204 | -3/Research | Discovered exit to Research (range 16) 12382 | -3/Research | Search patrols dispatched 12390 | -3/Research | Found Mni. Smartbomb Launcher 12405 | -3/Research | Entered another Research area 12405 | -2/Research | Warlord forces began assault on 0b10 12405 | -2/Research | Evolved 2 slots: Utility x1, Weapon x1 12515 | -2/Research | Research machine network offline 12569 | -2/Research | Borebot progress halted 12793 | -2/Research | Found Exp. Focal Shield 13056 | -2/Research | Borebot progress halted 13077 | -2/Research | Borebot progress halted 13263 | -2/Research | Spotted Executioner 13267 | -2/Research | Spotted Striker 13275 | -2/Research | Destroyed Striker 13388 | -2/Research | Build established: Tank 13421 | -2/Research | Spotted B-90 Cyclops 13449 | -2/Research | Spotted Striker 13450 | -2/Research | Destroyed B-90 Cyclops 13455 | -2/Research | Destroyed Striker 13907 | -2/Research | Spotted Striker 13908 | -2/Research | Given Cave Seal Controls access code 13961 | -2/Research | Spotted Executioner 13961 | -2/Research | Spotted Striker 13975 | -2/Research | Destroyed Striker 13988 | -2/Research | Destroyed Executioner 13989 | -2/Research | Spotted Executioner 13997 | -2/Research | Destroyed Executioner 14006 | -2/Research | System corruption reached 10% 14029 | -2/Research | Destroyed 10 combat bots 14073 | -2/Research | Spotted Striker 14078 | -2/Research | Destroyed Striker 14093 | -2/Research | Spotted Striker 14094 | -2/Research | Spotted Executioner 14097 | -2/Research | Destroyed Executioner 14108 | -2/Research | Destroyed Striker 14129 | -2/Research | Spotted Executioner 14135 | -2/Research | Spotted Executioner 14150 | -2/Research | Released all parts (15) 14154 | -2/Research | Destroyed 7 combat bots 14157 | -2/Research | Core integrity fell below 50% 14180 | -2/Research | Lost 6 parts (2p2u2w) 14206 | -2/Research | Core integrity fell below 20% 14291 | -2/Research | Found Prototype Launcher 14291 | -2/Research | Identified Point Singularity Launcher 14305 | -2/Research | Lost 3 parts (2p1u) 14325 | -2/Research | Spotted Executioner 14410 | -2/Research | Spotted Striker 14443 | -2/Research | Destroyed by Striker with Plasma Lance Last Messages --------------- 14374_ Acquired Impulse Thruster Array+. 14375_ Dropped Impulse Thruster Array+. 14376_ Dropped Electron Diverter. 14379_ Dropped Field Propulsion Array+. 14379_ Acquired Cld. Gravmag System. 14387_ LBMJWXE%R=JCGT5 A=O CWCZD/ 14387_ Acquired Cmb. Linear Gravjet. 14394_ Slug penetrates Wall. 14395_ Dropped Quantum Rifle. 14397_ Penetrated by Slug. 14400_ Slug penetrates Wall. 14400_ Quantum Separator disabled. 14403_ System corrupted: Energy discharge (-58). 14412_ Knocked back. 14412_ Penetrated by Slug. 14422_ R EW6K SWI|SRB9,DNHE<:AJQP|&V